Cogmind - Beta 16 @@@ ROGUE MODE // 2026.01.02 @ 17:51:17 Player: KZ_RAD Result: Destroyed by G-47 Trooper with Particle Gun Performance ------------- Evolutions (1) 500 Regions Visited (2) 400 Robots Destroyed (35) 175 Value Destroyed (779) 779 Prototype IDs (0) 0 Alien Tech Used (0) 0 Bonus (0) 0 TOTAL SCORE: 1854 Bonus ------- None Cogmind --------- Core Integrity 0/400 Matter 41/300 Energy 100/100 System Corruption 0% Temperature Cool (9) Movement Core (350) Ox6 Location -9/Materials Parts ------- > --- POWER (1) -------- (None) > --- PROPULSION (2) --- (None) > --- UTILITY (3) ------ Large Storage Unit > --- WEAPON (3) ------- (None) > --- INVENTORY (15) --- Light Ion Engine Light Ion Engine Improved Heat Sink Medium Storage Unit Medium Storage Unit Large Storage Unit Signal Interpreter Peak State ------------ > --- POWER ------------ Light Ion Engine > --- PROPULSION ------- Aluminum Leg Aluminum Leg > --- UTILITY ---------- Improved Heat Sink Large Storage Unit Improved Terrain Scanner > --- WEAPON ----------- Missile Launcher Missile Launcher Missile Launcher > --- INVENTORY -------- Ion Engine Light Ion Engine Aluminum Leg Aluminum Leg Aluminum Leg Improved Heat Sink Medium Storage Unit Medium Storage Unit Large Storage Unit Signal Interpreter Light Assault Rifle Missile Launcher [Rating: 20] Favorites ----------- Power Light Ion Engine Engine Light Ion Engine Propulsion Aluminum Leg Leg Aluminum Leg Utility Small Matter Pod Device Improved Terrain Scanner Storage Small Matter Pod Weapon Missile Launcher Ballistic Gun Assault Rifle Launcher Missile Launcher Build | -11 -10 -9 ------- Run | Yrd Mat Mat Slots Evolved 2 | . . 2 Power . | . . . Propulsion . | . . . Utility 1 | . . 1 Weapon 1 | . . 1 Parts Attached 25 | 7 3 15 Power 4 | 1 1 2 Engine 4 | 1 1 2 Core . | . . . Reactor . | . . . Propulsion 6 | 2 . 4 Treads . | . . . Leg 6 | 2 . 4 Wheel . | . . . Hover . | . . . Flight . | . . . Utility 6 | 2 1 3 Device 3 | 1 . 2 Storage 3 | 1 1 1 Processor . | . . . Hackware . | . . . Protection . | . . . Artifact . | . . . Weapon 9 | 2 1 6 Energy Gun . | . . . Energy Cannon . | . . . Ballistic Gun 5 | 2 1 2 Ballistic Cannon . | . . . Launcher 4 | . . 4 Special Weapon . | . . . Impact Weapon . | . . . Slashing Weapon . | . . . Piercing Weapon . | . . . Special Melee Weapon . | . . . Unidentified Prototypes . | . . . Parts Lost 14 | . . 14 Power 2 | . . 2 Propulsion 4 | . . 4 Utility 2 | . . 2 Weapon 6 | . . 6 Highest Loss Streak 13 | . . 13 To Critical Strikes . | . . . Average Backups 7 | . 5 10 Power 1 | . 1 1 Propulsion 1 | . 1 2 Utility 3 | . 2 4 Weapon 1 | . . 1 Tool/Special . | . . . Unused Backups 6 | . . 6 Power 2 | . . 2 Propulsion . | . . . Utility 4 | . . 4 Weapon . | . . . Tool/Special . | . . . Average Slot Usage (%) 96 | . 99 93 Engine 12 | . 14 10 Leg 24 | . 28 20 Device 10 | . . 18 Storage 19 | . 27 13 Ballistic Gun 15 | . 28 5 Launcher 13 | . . 24 Peak Build Rating 20 | 7 8 20 Average Rating 11 | 4 7 17 On Entrance 5 | . 7 8 Avg Prop Armor Cover (%) . | . . . Naked Turns . | . . . Heaviest Build 43 | 9 18 43 Greatest Support 20 | 20 20 20 Greatest Overweight (x) 9 | . . 9 Average Overweight (x) . | . . 1 Largest Inventory Capacity 15 | 5 10 15 Average Capacity 11 | 5 9 14 Most Carried 15 | 2 10 15 Average Carried 7 | . 5 10 Final Capacity 15 | 5 10 15 Final Carried 10 | 2 10 7 Class Distribution -------------------- 55% | Mutant 21% | Skirmisher 19% | Scavenger-Skirmisher 3% | Scavenger-Mutant Dominant Class ---------------- Mutant | -10/Materials Skirmisher | -9/Materials Resources | -11 -10 -9 ----------- Run | Yrd Mat Mat Matter Collected 743 | 368 221 154 Remotely . | . . . Salvage Created 755 | 94 223 438 Parts 66 | 8 15 43 Haulers Intercepted 1 | . . 1 Recyclers Shooed 1 | . 1 . Parts Field Recycled . | . . . Retrieved Matter . | . . . Parts Self-Destructed . | . . . Prevented . | . . . Parts Restored . | . . . Kills | -11 -10 -9 ------- Run | Yrd Mat Mat Combat Hostiles Destroyed 22 | 1 8 13 Guns 11 | 1 8 2 AOE 11 | . . 11 Classes Destroyed 11 | 3 1 7 Worker 4 | 1 . 3 Builder 3 | . . 3 Tunneler 2 | 1 . 1 Hauler 1 | . . 1 Mechanic 1 | . . 1 Operator 1 | . . 1 Watcher 1 | . . 1 Swarmer 6 | . 4 2 Grunt 12 | 1 4 7 Brawler 1 | . . 1 Sentry 3 | . . 3 Best Kill Streak 10 | 2 2 10 Combat Bots Only 5 | 1 2 5 Max Kills in Single Turn 5 | 1 1 5 Gunslinging . | . . . Exploded 2 | . . 2 Melee . | . . . Uniques/NPCs Destroyed . | . . . Combat | -11 -10 -9 -------- Run | Yrd Mat Mat Hostile Shots Fired 219 | 9 47 163 Missed 67 | 4 18 45 Hits 152 | 5 29 118 Projectile 152 | 5 29 118 Critical Strikes 1 | . . 1 Damage Taken 1827 | 53 274 1500 Core 503 | 31 61 411 Absorbed by Shields . | . . . Core Remaining (%) 75 | 87 63 . Volleys Fired 58 | 8 34 16 Largest 3 | 2 2 3 Hottest 108 | 40 40 108 Shots Fired 119 | 16 68 35 Gun 92 | 16 68 8 Cannon . | . . . Launcher 27 | . . 27 Special . | . . . Kinetic 92 | 16 68 8 Thermal . | . . . Explosive 27 | . . 27 Electromagnetic . | . . . Robot Hit Streak 7 | 4 7 6 Robot Miss Streak 8 | 2 8 2 Penetration Max . | . . . Secondary Targets . | . . . Shots Hit Robots 61 | 11 34 16 Core Hits 50 | 4 12 34 Critical Kills . | . . . Critical Parts Destroyed 1 | . . 1 Critical Strikes 1 | . . 1 Destroy 1 | . . 1 Melee Attacks . | . . . Impact . | . . . Slashing . | . . . Piercing . | . . . Sneak Attacks . | . . . Combat Hostiles . | . . . Follow-up Attacks . | . . . Damage Inflicted 2194 | 126 420 1648 Guns 609 | 126 420 63 Cannons . | . . . Explosions 1584 | . . 1584 Melee . | . . . Ramming 1 | . . 1 Kinetic 609 | 126 420 63 Thermal . | . . . Explosive 1584 | . . 1584 Electromagnetic . | . . . Impact . | . . . Slashing . | . . . Piercing . | . . . Highest Corruption . | . . . Average Corruption . | . . . Corruption Purged . | . . . Corruption Blocked . | . . . Overload Shots . | . . . Overflow Damage 78 | . . 78 Projectiles . | . . . Explosions 78 | . . 78 Melee . | . . . Knockbacks . | . . . Impact . | . . . Kinetic . | . . . Secondary . | . . . Self-Inflicted Damage 42 | . . 42 Shots 3 | . . 3 Rammed . | . . . Targets Rammed 1 | . . 1 Kicked 1 | . . 1 Crushed . | . . . Highest Temperature 14 | . . 14 Average Temperature 5 | . . 5 Received Heat Transfer 618 | 30 96 492 Siege Activations . | . . . Martial Activations . | . . . Shielding Activations . | . . . Robots Disrupted . | . . . Combat Hostiles . | . . . Robots Corrupted . | . . . Combat Hostiles . | . . . Parts Fried . | . . . Impact Corruptions . | . . . Robots Melted . | . . . Combat Hostiles . | . . . Parts Melted . | . . . Heat Transferred . | . . . Parts Sabotaged . | . . . Parts Stolen . | . . . Parts Stripped . | . . . Power Chain Reactions . | . . . Alert | -11 -10 -9 ------- Run | Yrd Mat Mat Maximum Alert Level 1 | . . 1 Low Security (%) 79 | 100 100 58 Level 1 20 | . . 41 Level 2 . | . . . Level 3 . | . . . Level 4 . | . . . Level 5 . | . . . High Security . | . . . Max Security . | . . . Peak Influence 347 | 25 127 347 Initial 53 | . 9 53 Average 101 | 4 36 174 Influence Increases 937 | 30 235 672 Destroy 0b10 Robot/C 440 | 20 160 260 Destroy 0b10 Robot/NC 65 | 10 . 55 Destroy Leader 104 | . 30 74 Disable Machine 90 | . . 90 Destroy Structure 178 | . . 178 Lose Combat Pursuer 60 | . 45 15 Influence Decreases 590 | 15 123 452 Entered New Map 80 | . 6 74 Time Decay 370 | 15 117 238 Lost Part 140 | . . 140 Squads Dispatched 5 | . 2 3 Investigation 2 | . 1 1 Extermination . | . . . Reinforcement 3 | . 1 2 Assault . | . . . Garrison . | . . . Intercept . | . . . Searches Triggered . | . . . Construction Impeded . | . . . Haulers Reinforced . | . . . Active Scanning Responses . | . . . Cargo Convoy Interrupts . | . . . Stealth | -11 -10 -9 --------- Run | Yrd Mat Mat Distress Signals 1 | . . 1 Communications Jammed . | . . . Distress Signals . | . . . Times Spotted 32 | 1 12 19 Peak Tracking Total 10 | 1 3 10 Tactical Retreats 3 | . 2 1 Traps | -11 -10 -9 ------- Run | Yrd Mat Mat Traps Triggered . | . . . Indirectly . | . . . Trap Hack Attempts . | . . . Triggered . | . . . Disarmed . | . . . Reprogrammed . | . . . Reused . | . . . Traps Extracted . | . . . Installed . | . . . Triggered . | . . . Machines | -11 -10 -9 ---------- Run | Yrd Mat Mat Machines Disabled 6 | . . 6 Max in Single Turn 4 | . . 4 Machines Repaired . | . . . Machines Dismantled . | . . . Machines Sabotaged . | . . . Overloaded Fab Kills . | . . . Hacking | -11 -10 -9 --------- Run | Yrd Mat Mat Machines Accessed 4 | . 2 2 Terminals 2 | . 1 1 Fabricators . | . . . Repair Stations . | . . . Recycling Units 2 | . 1 1 Scanalyzers . | . . . Garrison Access . | . . . Total Hacks 11 | . 7 4 Successful 10 | . 6 4 Failed 1 | . 1 . Catastrophic . | . . . Database Lockouts . | . . . Manual . | . . . Terminals 4 | . 3 1 Fabricators . | . . . Repair Stations . | . . . Recycling Units 7 | . 4 3 Scanalyzers . | . . . Garrison Access . | . . . Terminal Hacks 3 | . 2 1 Record 3 | . 2 1 Fabricator Hacks . | . . . Repair Station Hacks . | . . . Recycling Unit Hacks 7 | . 4 3 Recycle Component 2 | . . 2 Process 2 | . 1 1 Report Inventory 1 | . 1 . Retrieve Matter 1 | . 1 . Retrieve Components 1 | . 1 . Scanalyzer . | . . . Garrison Access Hacks . | . . . Unauthorized Hacks . | . . . Terminals . | . . . Fabricators . | . . . Repair Stations . | . . . Recycling Units . | . . . Scanalyzers . | . . . Garrison Access . | . . . Data Cores Recovered . | . . . Used . | . . . Hacking Detections 3 | . 2 1 Full Trace Events 2 | . 1 1 Feedback Events . | . . . Feedback Blocked . | . . . Robot Schematics Acquired . | . . . Robots Built . | . . . Authchips . | . . . Time . | . . . Total Robot Build Rating . | . . . Part Schematics Acquired . | . . . Parts Built . | . . . Authchips . | . . . Time . | . . . Total Part Build Rating . | . . . Part Studies Acquired . | . . . Parts Repaired . | . . . Time . | . . . Parts Recycled 2 | . . 2 Recycled Matter 45 | . 7 38 Retrieved Matter 7 | . 7 . Retrieved Components . | . . . Parts Scanalyzed . | . . . Part Schematics Acquired . | . . . Parts Damaged . | . . . Bothacking | -11 -10 -9 ------------ Run | Yrd Mat Mat Used RIF Installer . | . . . Robots Hacked . | . . . Non-combat . | . . . Combat . | . . . Robot Hacks Applied . | . . . Relay Couplers Released . | . . . Fabnet Peak Effective % . | . . . Robots Rewired . | . . . Allies Hacked . | . . . Hacks Repelled . | . . . Allies | -11 -10 -9 -------- Run | Yrd Mat Mat Total Allies . | . . . Largest Group . | . . . Highest-Rated Group . | . . . Highest-Rated Ally . | . . . Total Orders . | . . . Ally Attacks . | . . . Total Damage . | . . . Kills . | . . . Allies Corrupted . | . . . Allies Melted . | . . . Intel | -11 -10 -9 ------- Run | Yrd Mat Mat Active Infowar (turns) 495 | . . 495 Terrain 495 | . . 495 Robot Analysis Total . | . . . Derelict Logs Recovered . | . . . Drone Launches . | . . . Drone Recoveries . | . . . Exploration | -11 -10 -9 ------------- Run | Yrd Mat Mat Turns Passed 1046 | 111 418 517 Spaces Moved 506 | 70 251 185 Core 20 | 18 . 2 Treads . | . . . Legs 486 | 52 251 183 Wheels . | . . . Hover . | . . . Flight . | . . . Fastest Speed 50 | 50 120 120 Average Speed 159 | 102 120 233 Slowest Speed 500 | 120 120 500 Overloaded Moves . | . . . Propulsion Burnouts . | . . . Robots Hopped . | . . . Potential Cave-ins . | . . . Cave-ins Triggered . | . . . Exploration Rate (%) 26 | 9 41 28 Regions Visited 2 Branch Regions . Pre-discovered Areas . | . . . Known Exits Taken . | . . . Unknown Exits Taken 2 | 1 1 . Scrap Searched . | . . . Spaces Dug . | . . . Terrain Destroyed 257 | . . 257 Melee . | . . . Projectile . | . . . AOE 257 | . . 257 Terrain Rammed . | . . . Walls Destroyed . | . . . Machines Disabled . | . . . Actions | -11 -10 -9 --------- Run | Yrd Mat Mat Total 630 | 93 300 237 Wait . | . . . Move 504 | 69 250 185 Hop . | . . . Pick Up 31 | 9 9 13 Fast Attach . | . . . Attach 22 | 7 2 13 Detach 2 | . 2 . Swap 5 | . 2 3 Drop 7 | . 1 6 Fire 58 | 8 34 16 Melee . | . . . Ram . | . . . Kick 1 | . . 1 Crush . | . . . Escape Stasis . | . . . Rewire . | . . . Trap . | . . . Miscellaneous . | . . . Route ------- -11/Scrapyard -10/Materials -9/Materials History --------- Turn | Location | Event 2 | -11/Scrapyard | Met Revision 17 63 | -11/Scrapyard | Discovered new exit (range 8) 112 | -11/Scrapyard | Entered Materials 303 | -10/Materials | Build established: Mutant 524 | -10/Materials | Discovered new exit (range 3) 530 | -10/Materials | Entered another Materials area 530 | -9/Materials | Evolved 2 slots: Utility x1, Weapon x1 1009 | -9/Materials | Core integrity fell below 50% 1040 | -9/Materials | Core integrity fell below 20% 1047 | -9/Materials | Destroyed by G-47 Trooper with Particle Gun Last Messages --------------- G-34 Mercenary destroyed. [Achievement: Loot Pinata] M-13 Machinist destroyed. K-01 Serf collects debris. U-05 Engineer lays Concrete. U-05 Engineer builds a Wall. The unstable cave ceiling collapses. Missile Launcher destroyed. K-01 Serf collects debris. Y-45 Defender suffers critical hit (Destroy). Destroyed Hvy. Assault Rifle. U-05 Engineer builds a Wall. K-01 Serf collects debris. U-05 Engineer lays Concrete. Y-45 Defender destroyed. Lgt. Assault Rifle destroyed. U-05 Engineer lays Concrete. K-01 Serf collects debris. U-05 Engineer builds a Wall. [Achievement: First Step to Greatness] Map ----- +----------------------------------------------------+ | ?????????????????? ?#????????????????????????????? | | ?????????????????? ?????##???????????????????????? | | ?????????????????? ??????????????????????????????? | | ????????? ???????? ??????????#???????????????????? | | ?????????????????# #?????????????????????????????? | | ??????????????#?## #?????????????????????????????? | | ????????#????????# #?????????????????????????????? | | ?????#?????????###/##???#????????????????????????? | | ??????#??????#?# #????????????????????????????? | | ???????????????# !#????????????????????????????? | | ????????????#??# #?#????#?????????????????????? | | ???????????????# * #????????????????????????????? | | ??????????????## =% ##???????????????????????????? | | ??????????????# = #???????????????????????????? | | ? ?????#??????# ! #???????#???????????????????? | | ??????#???????# ##?????????#???????????????? | | ??????????????# # #??#???? ????????????????? | | ###########+### *=* =]!#### ??????????????? | | !==%% ]%] ??????????????? | | =!*%! ]]#### [ ?????????????? | | |%!=k=*% #????????????????????????? | | ###/###############%[ ##??? ??????????????????? | | # # u =%g #??????????????????????? | | # ## #??????????????????????? | | # # ### #????????????????? | | # # =w@ #????????????????? | | # # =[| ####+##????????????????? | | # = # =[| Y ????????????????????? | | ################ =[ ????????????????????? | | * =! #??## #"" ???????????????????? | | ##???# #"Y ???? ?????????????? | | [* #??######### #"" ?????????????????? | | ## = #?????????#### ???????????????? | | ### ##?????????????#########??#???????????? | | ??## ### #??????? ????????????????????????????? | | ???###?T #??"??????????????????????????????????? | | ?#?#??## #???????????????#?????????????????????? | | ???????# #????????????????#????????????????????? | | ???#???# #?????????????????????????????????????? | | ?#?????# +?????????????????? ??????????????????? | | ???##??# #?????????????????????????????????????? | | ??#????# #?????????????????????????????????????? | | ???#???? #?????????????????????????????????????? | | ????#??? ?????????????????????????????????????? | | ??? ???? ?????????????????????????????????????? | | ??? ????? ???????????????????????????????????????? | | ?????????????????????????????????????????????????? | | ?????????????????????????????????????????????????? | | ?????????????????????????????????????????????????? | | ?????????????????????????????????????????????????? | +----------------------------------------------------+ Best States ------------- Heat Dissipation 42 Energy Generation 10 Energy Capacity 250 Matter Stores 350 Matter Capacity 350 Sight Range 16 Terrain Scan Range 16 Terrain Scan Density 10 Evasion (%) 55 Item Schematics ----------------- None Robot Schematics ------------------ None Fabricated ------------ Nothing Repaired ---------- Nothing Studied --------- None Alien Tech Used ----------------- None Achievements -------------- First Step to Greatness For Emergencies Only Loot Pinata One Hack Too Far Oops Organ Harvest Overwhelming Remodeling Resistances Are Futile Storm Trooper There's More Where That Came From Uninvited Guest Challenges ------------ None Game ------ Seed VoltaicDirectedExtrapolator Manual? 0 Play Time 00:36:47 Cumulative 0.5 hours Start 2026.01.02 @ 16:59:12 End 2026.01.02 @ 17:51:17 Sessions 1 Manual Loads 0 Difficulty Rogue Special Mode None Game No. 1 Rogue 1 Adventurer 0 Explorer 0 Win Type - Total 0 Types 0/0/0/0/0/0/0/0/0/0 Lore% 0 Gallery% 1 Achievement% 2 Wizard Run 0 Options --------- Layout 1 ASCII 0 Keyboard 0 Movement Mouse Keybinds 0 Fullscreen 1 Font 32/SmallcapsGlow Map View 50x35 Zoom Use 0% Tactical HUD 0 Map Filters NONE Filters NONE Steam 1 RUN: 57921f48-9555-4d38-9cdc-2bf6cffe80a6